[Event "Titled Tuesday Blitz April 4 Late 2023"]
[White "Tarnowska, Aleksandra"]
[Black "Bronstein, Or"]
[WhiteFideId "1180967"]
[BlackFideId "2815770"]
[WhiteElo "1776"]
[BlackElo "2356"]
[Result "0-1"]
[Round "02"]
[TimeControl "180+2"]
[Date "2023.04.04"]
[WhiteClock "0:01:46"]
[BlackClock "0:02:51"]

1. e4 {[%clk 0:03:00]}  c6 {[%clk 0:02:59]} 2. d4 {[%clk 0:03:00]}  d5 {[%clk 0:03:00]} 3. Nc3 {[%clk 0:03:00]}  dxe4 {[%clk 0:02:59]} 4. Nxe4 {[%clk 0:03:01]}  Nf6 {[%clk 0:03:00]} 5. Nxf6+ {[%clk 0:03:01]}  exf6 {[%clk 0:03:01]} 6. Nf3 {[%clk 0:03:01]}  Bd6 {[%clk 0:03:02]} 7. Be3 {[%clk 0:03:02]}  O-O {[%clk 0:03:02]} 8. Qd2 {[%clk 0:03:02]}  f5 {[%clk 0:03:02]} 9. O-O-O {[%clk 0:02:52]}  Nd7 {[%clk 0:03:02]} 10. Bd3 {[%clk 0:02:48]}  Nf6 {[%clk 0:03:02]} 11. h4 {[%clk 0:02:08]}  a5 {[%clk 0:02:59]} 12. h5 {[%clk 0:02:08]}  Nd5 {[%clk 0:02:55]} 13. Bg5 {[%clk 0:01:51]}  f6 {[%clk 0:02:51]} 14. Bh4 {[%clk 0:01:46]}  Bf4 {[%clk 0:02:51]} 0-1


[Site "https://www.chess.com"]

[Event "Titled Tuesday Blitz April 4 Late 2023"]
[White "Xiong, Jeffery"]
[Black "Popov, Mikhail"]
[WhiteFideId "2047640"]
[BlackFideId "4146182"]
[WhiteElo "2726"]
[BlackElo "2244"]
[Result "1-0"]
[Round "02"]
[TimeControl "180+2"]
[Date "2023.04.04"]
[WhiteClock "0:01:32"]
[BlackClock "0:00:04"]

1. e4 {[%clk 0:03:00]}  e6 {[%clk 0:03:00]} 2. d4 {[%clk 0:03:00]}  d5 {[%clk 0:03:01]} 3. e5 {[%clk 0:03:01]}  c5 {[%clk 0:03:01]} 4. c3 {[%clk 0:03:01]}  Nc6 {[%clk 0:03:01]} 5. Nf3 {[%clk 0:03:02]}  Qb6 {[%clk 0:03:01]} 6. Be2 {[%clk 0:02:59]}  Nh6 {[%clk 0:03:01]} 7. Bxh6 {[%clk 0:02:58]}  gxh6 {[%clk 0:03:02]} 8. Qd2 {[%clk 0:02:59]}  cxd4 {[%clk 0:03:01]} 9. cxd4 {[%clk 0:03:00]}  Bg7 {[%clk 0:03:01]} 10. O-O {[%clk 0:02:59]}  O-O {[%clk 0:03:02]} 11. Na3 {[%clk 0:02:49]}  f6 {[%clk 0:03:00]} 12. exf6 {[%clk 0:02:50]}  Rxf6 {[%clk 0:03:00]} 13. Nc2 {[%clk 0:02:49]}  Bd7 {[%clk 0:03:01]} 14. b4 {[%clk 0:02:49]}  Raf8 {[%clk 0:02:58]} 15. b5 {[%clk 0:02:45]}  Ne7 {[%clk 0:02:45]} 16. Ne5 {[%clk 0:02:41]}  Qd6 {[%clk 0:02:33]} 17. Ne3 {[%clk 0:02:37]}  Rf4 {[%clk 0:02:10]} 18. Nf3 {[%clk 0:02:30]}  Ng6 {[%clk 0:01:52]} 19. Rac1 {[%clk 0:02:25]}  Re4 {[%clk 0:01:40]} 20. g3 {[%clk 0:02:22]}  Bxb5 {[%clk 0:01:17]} 21. Bxb5 {[%clk 0:02:20]}  Rxf3 {[%clk 0:01:17]} 22. Rc8+ {[%clk 0:02:06]}  Rf8 {[%clk 0:01:15]} 23. Rxf8+ {[%clk 0:02:06]}  Nxf8 {[%clk 0:01:15]} 24. Nc2 {[%clk 0:02:06]}  Rg4 {[%clk 0:00:43]} 25. Be2 {[%clk 0:02:02]}  Rg6 {[%clk 0:00:42]} 26. Re1 {[%clk 0:02:00]}  Nd7 {[%clk 0:00:39]} 27. Bh5 {[%clk 0:01:58]}  Rf6 {[%clk 0:00:39]} 28. Bg4 {[%clk 0:01:59]}  Nf8 {[%clk 0:00:29]} 29. Qd3 {[%clk 0:01:56]}  Rg6 {[%clk 0:00:29]} 30. Bh5 {[%clk 0:01:56]}  Rf6 {[%clk 0:00:28]} 31. Kg2 {[%clk 0:01:56]}  a6 {[%clk 0:00:27]} 32. Ne3 {[%clk 0:01:47]}  Qb6 {[%clk 0:00:19]} 33. Nc2 {[%clk 0:01:46]}  Rf5 {[%clk 0:00:18]} 34. Bg4 {[%clk 0:01:46]}  Rf6 {[%clk 0:00:18]} 35. h4 {[%clk 0:01:46]}  Qd6 {[%clk 0:00:18]} 36. Re2 {[%clk 0:01:36]}  Qb6 {[%clk 0:00:19]} 37. Ne1 {[%clk 0:01:36]}  Qd6 {[%clk 0:00:19]} 38. Nf3 {[%clk 0:01:36]}  Nd7 {[%clk 0:00:18]} 39. Qe3 {[%clk 0:01:36]}  Nf8 {[%clk 0:00:16]} 40. Ne5 {[%clk 0:01:36]}  Qc7 {[%clk 0:00:14]} 41. Bh3 {[%clk 0:01:35]}  Qd6 {[%clk 0:00:15]} 42. Ng4 {[%clk 0:01:35]}  Rg6 {[%clk 0:00:14]} 43. Nh2 {[%clk 0:01:32]}  Rf6 {[%clk 0:00:14]} 44. Nf3 {[%clk 0:01:33]}  Rg6 {[%clk 0:00:14]} 45. Qb3 {[%clk 0:01:32]}  b5 {[%clk 0:00:13]} 46. a4 {[%clk 0:01:32]}  b4 {[%clk 0:00:13]} 47. a5 {[%clk 0:01:32]}  Nd7 {[%clk 0:00:11]} 48. Rb2 {[%clk 0:01:32]}  Nf6 {[%clk 0:00:09]} 49. Qxb4 {[%clk 0:01:32]}  Qxb4 {[%clk 0:00:09]} 50. Bxe6+ {[%clk 0:01:32]}  Kf8 {[%clk 0:00:09]} 51. Rxb4 {[%clk 0:01:33]}  Ne4 {[%clk 0:00:08]} 52. Bxd5 {[%clk 0:01:33]}  Nd6 {[%clk 0:00:06]} 53. Rb6 {[%clk 0:01:33]}  Nb5 {[%clk 0:00:06]} 54. Rb8+ {[%clk 0:01:30]}  Ke7 {[%clk 0:00:06]} 55. Ne5 {[%clk 0:01:31]}  Bxe5 {[%clk 0:00:05]} 56. dxe5 {[%clk 0:01:31]}  Nd4 {[%clk 0:00:04]} 57. Rb7+ {[%clk 0:01:31]}  Kd8 {[%clk 0:00:04]} 58. Rxh7 {[%clk 0:01:32]} 1-0


[Site "https://www.chess.com"]

[Event "Titled Tuesday Blitz April 4 Late 2023"]
[White "Leschinsky, Gary"]
[Black "Gadimbayli, Abdulla"]
[WhiteFideId "30951321"]
[BlackFideId "13404938"]
[WhiteElo "1855"]
[BlackElo "2390"]
[Result "0-1"]
[Round "02"]
[TimeControl "180+2"]
[Date "2023.04.04"]
[WhiteClock "0:00:18"]
[BlackClock "0:00:06"]

1. d4 {[%clk 0:02:52]}  Nf6 {[%clk 0:02:51]} 2. c4 {[%clk 0:02:53]}  Nc6 {[%clk 0:02:51]} 3. Nf3 {[%clk 0:02:52]}  e6 {[%clk 0:02:51]} 4. Nc3 {[%clk 0:02:53]}  g6 {[%clk 0:02:49]} 5. e4 {[%clk 0:02:50]}  d6 {[%clk 0:02:49]} 6. Be2 {[%clk 0:02:49]}  Bg7 {[%clk 0:02:49]} 7. O-O {[%clk 0:02:49]}  O-O {[%clk 0:02:50]} 8. Bg5 {[%clk 0:02:48]}  Re8 {[%clk 0:02:49]} 9. Qd2 {[%clk 0:02:42]}  e5 {[%clk 0:02:46]} 10. dxe5 {[%clk 0:02:36]}  Nxe5 {[%clk 0:02:47]} 11. Nxe5 {[%clk 0:02:35]}  Rxe5 {[%clk 0:02:48]} 12. f4 {[%clk 0:02:28]}  Rxe4 {[%clk 0:01:26]} 13. Bxf6 {[%clk 0:01:23]}  Rxe2 {[%clk 0:01:24]} 14. Qxe2 {[%clk 0:01:22]}  Bxf6 {[%clk 0:01:23]} 15. Nd5 {[%clk 0:01:21]}  Be6 {[%clk 0:00:34]} 16. Nxf6+ {[%clk 0:01:15]}  Qxf6 {[%clk 0:00:35]} 17. b3 {[%clk 0:01:14]}  Re8 {[%clk 0:00:35]} 18. Qd2 {[%clk 0:01:14]}  b6 {[%clk 0:00:32]} 19. h3 {[%clk 0:01:14]}  h5 {[%clk 0:00:32]} 20. Rad1 {[%clk 0:01:14]}  a5 {[%clk 0:00:32]} 21. Qd4 {[%clk 0:01:14]}  Qf5 {[%clk 0:00:30]} 22. Rfe1 {[%clk 0:01:12]}  Qc2 {[%clk 0:00:29]} 23. Qd2 {[%clk 0:01:10]}  Qf5 {[%clk 0:00:29]} 24. Qf2 {[%clk 0:01:02]}  Kh7 {[%clk 0:00:28]} 25. Rf1 {[%clk 0:00:59]}  Bd7 {[%clk 0:00:27]} 26. Rde1 {[%clk 0:01:00]}  Be6 {[%clk 0:00:27]} 27. Qh4 {[%clk 0:00:59]}  Kg7 {[%clk 0:00:25]} 28. Rf2 {[%clk 0:00:49]}  Kf8 {[%clk 0:00:16]} 29. Kh2 {[%clk 0:00:42]}  a4 {[%clk 0:00:16]} 30. Re3 {[%clk 0:00:32]}  axb3 {[%clk 0:00:15]} 31. axb3 {[%clk 0:00:32]}  Ra8 {[%clk 0:00:16]} 32. g4 {[%clk 0:00:25]}  hxg4 {[%clk 0:00:15]} 33. hxg4 {[%clk 0:00:26]}  Qxg4 {[%clk 0:00:06]} 34. Qh8+ {[%clk 0:00:26]}  Ke7 {[%clk 0:00:06]} 35. Qxa8 {[%clk 0:00:27]}  Qh4+ {[%clk 0:00:07]} 36. Kg2 {[%clk 0:00:28]}  Qg4+ {[%clk 0:00:05]} 37. Rg3 {[%clk 0:00:28]}  Qd1 {[%clk 0:00:05]} 38. Qf3 {[%clk 0:00:27]}  Qc1 {[%clk 0:00:05]} 39. Qe3 {[%clk 0:00:26]}  Qb1 {[%clk 0:00:05]} 40. Qd4 {[%clk 0:00:20]}  Kd8 {[%clk 0:00:05]} 41. Re3 {[%clk 0:00:20]}  Bd7 {[%clk 0:00:05]} 42. Qf6+ {[%clk 0:00:20]}  Kc8 {[%clk 0:00:05]} 43. Qxf7 {[%clk 0:00:20]}  Bc6+ {[%clk 0:00:05]} 44. Ref3 {[%clk 0:00:19]}  Qxb3 {[%clk 0:00:06]} 45. Qxg6 {[%clk 0:00:19]}  Kb7 {[%clk 0:00:06]} 46. f5 {[%clk 0:00:18]}  Qxc4 {[%clk 0:00:06]} 47. Qg3 {[%clk 0:00:18]}  Qf7 {[%clk 0:00:06]} 48. Qg5 {[%clk 0:00:18]}  Qd5 {[%clk 0:00:06]} 49. f6 {[%clk 0:00:18]}  Qxg5+ {[%clk 0:00:06]} 0-1


[Site "https://www.chess.com"]

[Event "Titled Tuesday Blitz April 4 Late 2023"]
[White "Kilpatrick, Callum"]
[Black "Kovalevsky, Stanislav"]
[WhiteFideId "414425"]
[BlackFideId "13508598"]
[WhiteElo "2351"]
[BlackElo "2174"]
[Result "0-1"]
[Round "02"]
[TimeControl "180+2"]
[Date "2023.04.04"]
[WhiteClock "0:00:04"]
[BlackClock "0:00:17"]

1. e4 {[%clk 0:03:00]}  e6 {[%clk 0:02:59]} 2. d4 {[%clk 0:02:59]}  d5 {[%clk 0:03:00]} 3. Nd2 {[%clk 0:02:59]}  dxe4 {[%clk 0:03:00]} 4. Nxe4 {[%clk 0:03:00]}  Nf6 {[%clk 0:03:01]} 5. Nxf6+ {[%clk 0:02:56]}  gxf6 {[%clk 0:03:02]} 6. Nf3 {[%clk 0:02:51]}  Nc6 {[%clk 0:03:02]} 7. g3 {[%clk 0:02:45]}  Ne7 {[%clk 0:03:02]} 8. Bg2 {[%clk 0:02:43]}  Bd7 {[%clk 0:03:02]} 9. O-O {[%clk 0:02:41]}  Bc6 {[%clk 0:03:02]} 10. c4 {[%clk 0:02:34]}  Qd7 {[%clk 0:03:01]} 11. b4 {[%clk 0:02:29]}  O-O-O {[%clk 0:02:59]} 12. b5 {[%clk 0:02:27]}  Be4 {[%clk 0:02:47]} 13. Qa4 {[%clk 0:02:08]}  Kb8 {[%clk 0:02:45]} 14. Be3 {[%clk 0:02:06]}  Nf5 {[%clk 0:02:43]} 15. c5 {[%clk 0:02:03]}  Bd3 {[%clk 0:02:29]} 16. c6 {[%clk 0:02:01]}  Qd5 {[%clk 0:02:26]} 17. cxb7 {[%clk 0:01:45]}  Qxb5 {[%clk 0:02:21]} 18. Qxb5 {[%clk 0:01:20]}  Bxb5 {[%clk 0:02:22]} 19. Rfb1 {[%clk 0:01:20]}  Bc6 {[%clk 0:02:20]} 20. Nd2 {[%clk 0:01:13]}  Bxg2 {[%clk 0:02:16]} 21. Kxg2 {[%clk 0:01:14]}  Nxd4 {[%clk 0:02:08]} 22. Nc4 {[%clk 0:01:02]}  Bc5 {[%clk 0:01:50]} 23. Na5 {[%clk 0:00:57]}  Rd6 {[%clk 0:01:50]} 24. Rc1 {[%clk 0:00:35]}  Bb6 {[%clk 0:01:43]} 25. Nc4 {[%clk 0:00:32]}  Rd5 {[%clk 0:01:37]} 26. a4 {[%clk 0:00:26]}  Nb3 {[%clk 0:01:27]} 27. Bxb6 {[%clk 0:00:24]}  axb6 {[%clk 0:01:23]} 28. Ne3 {[%clk 0:00:20]}  Rd3 {[%clk 0:00:58]} 29. Rd1 {[%clk 0:00:15]}  Rhd8 {[%clk 0:00:53]} 30. Rxd3 {[%clk 0:00:15]}  Rxd3 {[%clk 0:00:54]} 31. Rb1 {[%clk 0:00:12]}  Kxb7 {[%clk 0:00:51]} 32. h4 {[%clk 0:00:09]}  Ka6 {[%clk 0:00:48]} 33. h5 {[%clk 0:00:09]}  Ka5 {[%clk 0:00:39]} 34. h6 {[%clk 0:00:09]}  f5 {[%clk 0:00:36]} 35. Rh1 {[%clk 0:00:08]}  Kxa4 {[%clk 0:00:32]} 36. Rh5 {[%clk 0:00:08]}  f6 {[%clk 0:00:26]} 37. Rh4+ {[%clk 0:00:08]}  Rd4 {[%clk 0:00:25]} 38. Rh1 {[%clk 0:00:05]}  c5 {[%clk 0:00:22]} 39. Nc2 {[%clk 0:00:05]}  Rd2 {[%clk 0:00:22]} 40. Ne3 {[%clk 0:00:05]}  Nd4 {[%clk 0:00:20]} 41. Ra1+ {[%clk 0:00:04]}  Kb5 {[%clk 0:00:20]} 42. Ra7 {[%clk 0:00:05]}  f4 {[%clk 0:00:20]} 43. gxf4 {[%clk 0:00:05]}  Nf5 {[%clk 0:00:19]} 44. Nxf5 {[%clk 0:00:04]}  exf5 {[%clk 0:00:20]} 45. Rxh7 {[%clk 0:00:04]}  Rd8 {[%clk 0:00:19]} 46. Rf7 {[%clk 0:00:03]}  c4 {[%clk 0:00:19]} 47. Rxf6 {[%clk 0:00:03]}  c3 {[%clk 0:00:17]} 48. Rxf5+ {[%clk 0:00:04]}  Kb4 {[%clk 0:00:17]} 0-1


[Site "https://www.chess.com"]

[Event "Titled Tuesday Blitz April 4 Late 2023"]
[White "micke12a"]
[Black "Averjanov, Alexey"]
[BlackFideId "14109867"]
[WhiteElo "2333"]
[BlackElo "2661"]
[Result "1/2-1/2"]
[Round "02"]
[TimeControl "180+2"]
[Date "2023.04.04"]
[WhiteClock "0:00:16"]
[BlackClock "0:00:55"]

1. d4 {[%clk 0:03:00]}  d5 {[%clk 0:02:59]} 2. Nf3 {[%clk 0:03:01]}  Nf6 {[%clk 0:02:59]} 3. c4 {[%clk 0:03:01]}  dxc4 {[%clk 0:02:59]} 4. e3 {[%clk 0:02:59]}  e6 {[%clk 0:02:59]} 5. Bxc4 {[%clk 0:02:58]}  a6 {[%clk 0:02:59]} 6. O-O {[%clk 0:02:57]}  b5 {[%clk 0:02:59]} 7. Be2 {[%clk 0:02:53]}  Bb7 {[%clk 0:02:59]} 8. a4 {[%clk 0:02:54]}  b4 {[%clk 0:02:59]} 9. Nbd2 {[%clk 0:02:52]}  Nbd7 {[%clk 0:02:58]} 10. b3 {[%clk 0:02:53]}  c5 {[%clk 0:02:58]} 11. Bb2 {[%clk 0:02:53]}  Be7 {[%clk 0:02:57]} 12. Rc1 {[%clk 0:02:53]}  O-O {[%clk 0:02:57]} 13. Nc4 {[%clk 0:02:53]}  Qc7 {[%clk 0:02:57]} 14. Nfe5 {[%clk 0:02:52]}  Rfd8 {[%clk 0:02:56]} 15. Bf3 {[%clk 0:02:52]}  Nxe5 {[%clk 0:02:54]} 16. Nxe5 {[%clk 0:02:52]}  Rac8 {[%clk 0:02:53]} 17. Bxb7 {[%clk 0:02:52]}  Qxb7 {[%clk 0:02:53]} 18. Qe2 {[%clk 0:02:51]}  Ne4 {[%clk 0:02:47]} 19. Rfd1 {[%clk 0:02:46]}  Nc3 {[%clk 0:02:42]} 20. Bxc3 {[%clk 0:02:42]}  bxc3 {[%clk 0:02:42]} 21. Rxc3 {[%clk 0:02:42]}  cxd4 {[%clk 0:02:42]} 22. Rxc8 {[%clk 0:02:41]}  Rxc8 {[%clk 0:02:40]} 23. Rxd4 {[%clk 0:02:35]}  Qxb3 {[%clk 0:02:39]} 24. g3 {[%clk 0:02:31]}  Qb1+ {[%clk 0:02:10]} 25. Kg2 {[%clk 0:02:28]}  Qb7+ {[%clk 0:02:10]} 26. Qf3 {[%clk 0:02:20]}  Qxf3+ {[%clk 0:02:08]} 27. Nxf3 {[%clk 0:02:20]}  a5 {[%clk 0:02:05]} 28. Rd7 {[%clk 0:02:10]}  Kf8 {[%clk 0:02:03]} 29. Ra7 {[%clk 0:02:03]}  Bb4 {[%clk 0:02:00]} 30. Ne5 {[%clk 0:02:00]}  f6 {[%clk 0:01:58]} 31. Nd3 {[%clk 0:01:28]}  Rc3 {[%clk 0:01:53]} 32. Nxb4 {[%clk 0:00:52]}  axb4 {[%clk 0:01:53]} 33. Rb7 {[%clk 0:00:53]}  Rb3 {[%clk 0:01:52]} 34. a5 {[%clk 0:00:48]}  Ra3 {[%clk 0:01:52]} 35. a6 {[%clk 0:00:45]}  Rxa6 {[%clk 0:01:51]} 36. Rxb4 {[%clk 0:00:45]}  Ra7 {[%clk 0:01:51]} 37. Rb6 {[%clk 0:00:44]}  Kf7 {[%clk 0:01:51]} 38. Kf3 {[%clk 0:00:42]}  Rd7 {[%clk 0:01:50]} 39. h4 {[%clk 0:00:41]}  h5 {[%clk 0:01:49]} 40. Rb5 {[%clk 0:00:40]}  e5 {[%clk 0:01:49]} 41. Ke4 {[%clk 0:00:39]}  Kg6 {[%clk 0:01:48]} 42. Kf3 {[%clk 0:00:38]}  Rc7 {[%clk 0:01:48]} 43. Rb6 {[%clk 0:00:36]}  Rc4 {[%clk 0:01:47]} 44. Rb5 {[%clk 0:00:35]}  Ra4 {[%clk 0:01:46]} 45. Rb7 {[%clk 0:00:34]}  Ra2 {[%clk 0:01:44]} 46. Rc7 {[%clk 0:00:32]}  Rb2 {[%clk 0:01:44]} 47. Rd7 {[%clk 0:00:32]}  Rc2 {[%clk 0:01:44]} 48. Ra7 {[%clk 0:00:32]}  Rc1 {[%clk 0:01:42]} 49. Rb7 {[%clk 0:00:31]}  Ra1 {[%clk 0:01:41]} 50. Rc7 {[%clk 0:00:32]}  Ra2 {[%clk 0:01:42]} 51. Rb7 {[%clk 0:00:32]}  Ra3 {[%clk 0:01:42]} 52. Rc7 {[%clk 0:00:32]}  Ra4 {[%clk 0:01:42]} 53. Rb7 {[%clk 0:00:33]}  Ra5 {[%clk 0:01:42]} 54. Rc7 {[%clk 0:00:33]}  Rb5 {[%clk 0:01:42]} 55. Ra7 {[%clk 0:00:33]}  Rb8 {[%clk 0:01:41]} 56. Rc7 {[%clk 0:00:33]}  Ra8 {[%clk 0:01:42]} 57. Rb7 {[%clk 0:00:34]}  Rd8 {[%clk 0:01:41]} 58. Rc7 {[%clk 0:00:34]}  Rg8 {[%clk 0:01:41]} 59. Ra7 {[%clk 0:00:34]}  Kf5 {[%clk 0:01:41]} 60. Ra5 {[%clk 0:00:31]}  g5 {[%clk 0:01:38]} 61. e4+ {[%clk 0:00:30]}  Kg6 {[%clk 0:01:36]} 62. hxg5 {[%clk 0:00:29]}  Kxg5 {[%clk 0:01:37]} 63. Ke3 {[%clk 0:00:24]}  Rb8 {[%clk 0:01:36]} 64. f4+ {[%clk 0:00:20]}  Kg4 {[%clk 0:01:31]} 65. fxe5 {[%clk 0:00:20]}  fxe5 {[%clk 0:01:30]} 66. Rxe5 {[%clk 0:00:19]}  Rb3+ {[%clk 0:01:29]} 67. Kd4 {[%clk 0:00:19]}  Rxg3 {[%clk 0:01:28]} 68. Re8 {[%clk 0:00:19]}  h4 {[%clk 0:01:26]} 69. e5 {[%clk 0:00:18]}  h3 {[%clk 0:01:10]} 70. Rg8+ {[%clk 0:00:18]}  Kf3 {[%clk 0:01:10]} 71. Rxg3+ {[%clk 0:00:13]}  Kxg3 {[%clk 0:01:10]} 72. e6 {[%clk 0:00:13]}  h2 {[%clk 0:01:10]} 73. e7 {[%clk 0:00:14]}  h1=Q {[%clk 0:01:10]} 74. e8=Q {[%clk 0:00:14]}  Qa1+ {[%clk 0:01:08]} 75. Kd5 {[%clk 0:00:14]}  Qa2+ {[%clk 0:01:08]} 76. Kd6 {[%clk 0:00:13]}  Qa3+ {[%clk 0:01:08]} 77. Kd7 {[%clk 0:00:14]}  Qd3+ {[%clk 0:01:08]} 78. Ke7 {[%clk 0:00:14]}  Qe4+ {[%clk 0:01:08]} 79. Kf8 {[%clk 0:00:14]}  Qf5+ {[%clk 0:01:07]} 80. Qf7 {[%clk 0:00:15]}  Qc8+ {[%clk 0:01:07]} 81. Qe8 {[%clk 0:00:15]}  Qc5+ {[%clk 0:01:06]} 82. Qe7 {[%clk 0:00:15]}  Qf5+ {[%clk 0:01:04]} 83. Qf7 {[%clk 0:00:15]}  Qc8+ {[%clk 0:01:00]} 84. Qe8 {[%clk 0:00:15]}  Qc7 {[%clk 0:00:57]} 85. Qg6+ {[%clk 0:00:15]}  Kf4 {[%clk 0:00:55]} 86. Qf7+ {[%clk 0:00:15]}  Qxf7+ {[%clk 0:00:55]} 87. Kxf7 {[%clk 0:00:16]} 1/2-1/2


[Site "https://www.chess.com"]

[Event "Titled Tuesday Blitz April 4 Late 2023"]
[White "KorolDimitriy75"]
[Black "Timmermans, Mark"]
[BlackFideId "1026399"]
[WhiteElo "2412"]
[BlackElo "2460"]
[Result "0-1"]
[Round "02"]
[TimeControl "180+2"]
[Date "2023.04.04"]
[WhiteClock "0:00:07"]
[BlackClock "0:01:21"]

1. d4 {[%clk 0:03:00]}  Nf6 {[%clk 0:02:56]} 2. c4 {[%clk 0:03:01]}  e6 {[%clk 0:02:52]} 3. Nc3 {[%clk 0:03:01]}  Bb4 {[%clk 0:02:51]} 4. Qc2 {[%clk 0:03:01]}  O-O {[%clk 0:02:51]} 5. e4 {[%clk 0:03:01]}  d5 {[%clk 0:02:50]} 6. cxd5 {[%clk 0:03:02]}  exd5 {[%clk 0:02:48]} 7. e5 {[%clk 0:03:02]}  Ne4 {[%clk 0:02:48]} 8. Bd3 {[%clk 0:03:03]}  c5 {[%clk 0:02:36]} 9. Ne2 {[%clk 0:03:03]}  Nc6 {[%clk 0:02:36]} 10. O-O {[%clk 0:03:02]}  cxd4 {[%clk 0:02:18]} 11. Nxd5 {[%clk 0:03:01]}  Qxd5 {[%clk 0:02:16]} 12. Bxe4 {[%clk 0:03:02]}  Qxe5 {[%clk 0:02:16]} 13. Bxh7+ {[%clk 0:03:02]}  Kh8 {[%clk 0:02:16]} 14. Bf4 {[%clk 0:03:00]}  Qf6 {[%clk 0:02:17]} 15. Be4 {[%clk 0:02:57]}  Re8 {[%clk 0:02:14]} 16. Rad1 {[%clk 0:02:20]}  Bc5 {[%clk 0:02:01]} 17. Bxc6 {[%clk 0:01:57]}  Qxc6 {[%clk 0:02:02]} 18. Nxd4 {[%clk 0:01:53]}  Bxd4 {[%clk 0:02:03]} 19. Qxc6 {[%clk 0:01:52]}  Bxf2+ {[%clk 0:02:03]} 20. Rxf2 {[%clk 0:01:52]}  bxc6 {[%clk 0:02:04]} 21. h3 {[%clk 0:01:36]}  Be6 {[%clk 0:02:04]} 22. b3 {[%clk 0:01:35]}  a5 {[%clk 0:02:03]} 23. Bd6 {[%clk 0:01:22]}  a4 {[%clk 0:02:01]} 24. bxa4 {[%clk 0:01:17]}  Rxa4 {[%clk 0:02:02]} 25. a3 {[%clk 0:01:18]}  Rd8 {[%clk 0:01:59]} 26. Rdd2 {[%clk 0:01:12]}  Bd5 {[%clk 0:01:53]} 27. Bc5 {[%clk 0:01:09]}  Rc4 {[%clk 0:01:50]} 28. Rc2 {[%clk 0:01:07]}  Re4 {[%clk 0:01:47]} 29. Rce2 {[%clk 0:00:59]}  Rde8 {[%clk 0:01:47]} 30. Rxe4 {[%clk 0:00:57]}  Rxe4 {[%clk 0:01:48]} 31. Kh2 {[%clk 0:00:56]}  Kh7 {[%clk 0:01:47]} 32. Rb2 {[%clk 0:00:50]}  Rc4 {[%clk 0:01:37]} 33. Bd6 {[%clk 0:00:48]}  f5 {[%clk 0:01:36]} 34. Rf2 {[%clk 0:00:33]}  g6 {[%clk 0:01:31]} 35. Re2 {[%clk 0:00:32]}  g5 {[%clk 0:01:28]} 36. Be7 {[%clk 0:00:23]}  Kg6 {[%clk 0:01:28]} 37. Bd6 {[%clk 0:00:20]}  f4 {[%clk 0:01:26]} 38. Rf2 {[%clk 0:00:18]}  Kf5 {[%clk 0:01:23]} 39. g3 {[%clk 0:00:17]}  Rc1 {[%clk 0:01:22]} 40. gxf4 {[%clk 0:00:12]}  g4 {[%clk 0:01:22]} 41. Kg3 {[%clk 0:00:09]}  Rc3+ {[%clk 0:01:21]} 42. Kh2 {[%clk 0:00:07]}  Rxh3+ {[%clk 0:01:21]} 0-1


[Site "https://www.chess.com"]

[Event "Titled Tuesday Blitz April 4 Late 2023"]
[White "ArtemDyachuk"]
[Black "Castellanos Rodriguez, Renier"]
[BlackFideId "3404650"]
[WhiteElo "2410"]
[BlackElo "2597"]
[Result "0-1"]
[Round "02"]
[TimeControl "180+2"]
[Date "2023.04.04"]
[WhiteClock "0:00:01"]
[BlackClock "0:00:26"]

1. Nf3 {[%clk 0:03:00]}  c5 {[%clk 0:03:00]} 2. c4 {[%clk 0:02:59]}  Nf6 {[%clk 0:02:59]} 3. Nc3 {[%clk 0:02:58]}  e6 {[%clk 0:03:00]} 4. d4 {[%clk 0:02:25]}  cxd4 {[%clk 0:02:59]} 5. Nxd4 {[%clk 0:02:25]}  a6 {[%clk 0:02:59]} 6. g3 {[%clk 0:02:24]}  Qc7 {[%clk 0:02:59]} 7. b3 {[%clk 0:02:22]}  b5 {[%clk 0:02:47]} 8. e4 {[%clk 0:02:01]}  Bb7 {[%clk 0:02:43]} 9. Bd3 {[%clk 0:01:47]}  bxc4 {[%clk 0:02:39]} 10. bxc4 {[%clk 0:01:46]}  Bb4 {[%clk 0:01:57]} 11. Bd2 {[%clk 0:01:40]}  O-O {[%clk 0:01:55]} 12. O-O {[%clk 0:01:30]}  Nc6 {[%clk 0:01:41]} 13. Nxc6 {[%clk 0:01:20]}  dxc6 {[%clk 0:01:35]} 14. Qe2 {[%clk 0:01:07]}  Bc5 {[%clk 0:01:34]} 15. e5 {[%clk 0:00:54]}  Nd7 {[%clk 0:01:34]} 16. Ne4 {[%clk 0:00:54]}  Bd4 {[%clk 0:01:31]} 17. Rab1 {[%clk 0:00:50]}  Nxe5 {[%clk 0:01:29]} 18. Ng5 {[%clk 0:00:31]}  g6 {[%clk 0:01:10]} 19. Bf4 {[%clk 0:00:30]}  c5 {[%clk 0:01:08]} 20. Bxe5 {[%clk 0:00:20]}  Bxe5 {[%clk 0:01:05]} 21. Rxb7 {[%clk 0:00:20]}  Qxb7 {[%clk 0:01:03]} 22. Qxe5 {[%clk 0:00:20]}  Qe7 {[%clk 0:00:59]} 23. Ne4 {[%clk 0:00:18]}  f6 {[%clk 0:00:54]} 24. Qxc5 {[%clk 0:00:18]}  Qxc5 {[%clk 0:00:52]} 25. Nxc5 {[%clk 0:00:19]}  Kf7 {[%clk 0:00:53]} 26. Ne4 {[%clk 0:00:15]}  Rfd8 {[%clk 0:00:52]} 27. Be2 {[%clk 0:00:13]}  Rd4 {[%clk 0:00:52]} 28. Bf3 {[%clk 0:00:11]}  Rc8 {[%clk 0:00:50]} 29. c5 {[%clk 0:00:10]}  Ke7 {[%clk 0:00:50]} 30. Rb1 {[%clk 0:00:10]}  Rc7 {[%clk 0:00:50]} 31. Rb6 {[%clk 0:00:09]}  Ra4 {[%clk 0:00:46]} 32. c6 {[%clk 0:00:06]}  f5 {[%clk 0:00:42]} 33. Nc5 {[%clk 0:00:05]}  Rxa2 {[%clk 0:00:41]} 34. Rb7 {[%clk 0:00:05]}  Kd6 {[%clk 0:00:39]} 35. Nd7 {[%clk 0:00:05]}  Rxc6 {[%clk 0:00:32]} 36. Bxc6 {[%clk 0:00:04]}  Kxc6 {[%clk 0:00:33]} 37. Ra7 {[%clk 0:00:05]}  a5 {[%clk 0:00:34]} 38. Ne5+ {[%clk 0:00:05]}  Kd5 {[%clk 0:00:34]} 39. Nf3 {[%clk 0:00:05]}  e5 {[%clk 0:00:35]} 40. Rxh7 {[%clk 0:00:04]}  e4 {[%clk 0:00:35]} 41. Nh4 {[%clk 0:00:04]}  e3 {[%clk 0:00:32]} 42. fxe3 {[%clk 0:00:04]}  a4 {[%clk 0:00:30]} 43. Nxg6 {[%clk 0:00:03]}  a3 {[%clk 0:00:30]} 44. Re7 {[%clk 0:00:01]}  Rb2 {[%clk 0:00:30]} 45. Nf4+ {[%clk 0:00:02]}  Kc4 {[%clk 0:00:30]} 46. Ra7 {[%clk 0:00:02]}  a2 {[%clk 0:00:30]} 47. h4 {[%clk 0:00:02]}  Rb1+ {[%clk 0:00:27]} 48. Kg2 {[%clk 0:00:03]}  a1=Q {[%clk 0:00:27]} 49. Rxa1 {[%clk 0:00:03]}  Rxa1 {[%clk 0:00:28]} 50. h5 {[%clk 0:00:04]}  Ra6 {[%clk 0:00:29]} 51. Ng6 {[%clk 0:00:03]}  Kd5 {[%clk 0:00:28]} 52. Kf3 {[%clk 0:00:02]}  Ke6 {[%clk 0:00:28]} 53. Kf4 {[%clk 0:00:02]}  Kf6 {[%clk 0:00:28]} 54. Kf3 {[%clk 0:00:02]}  Ra1 {[%clk 0:00:27]} 55. Nf4 {[%clk 0:00:01]}  Kg5 {[%clk 0:00:27]} 56. Kg2 {[%clk 0:00:01]}  Kg4 {[%clk 0:00:26]} 57. Kf2 {[%clk 0:00:01]}  Ra2+ {[%clk 0:00:26]} 0-1


[Site "https://www.chess.com"]